[Event "10th Dolomiti Open 2019"]
[Site "Forni di Sopra"]
[Date "2019.06.18"]
[Round "4.5"]
[White "Arjun, Kalyan"]
[Black "Sarkar, Justin"]
[Result "0-1"]
[ECO "B61"]
[WhiteElo "2482"]
[BlackElo "2359"]
[Annotator "ChessBase"]
[PlyCount "126"]
[EventDate "2019.06.15"]
[EventType "swiss"]
[EventCountry "ITA"]
[SourceTitle "playchess.com"]
[Source "ChessBase"]
[SourceQuality "1"]
[TimeControl "40/5400+30:1800+30"]

1. e4 {[%emt 0:00:00]} c5 {[%emt 0:24:13]} 2. Nf3 {[%emt 0:00:00]} Nc6 {[%emt 0:00:11]} 3. d4 {[%emt 0:00:00]} cxd4 {[%emt 0:00:05]} 4. Nxd4 {[%emt 0:00:00]} Nf6 {[%emt 0:00:35]} 5. Nc3 {[%emt 0:00:06]} d6 {[%emt 0:00:50]} 6. Bg5 {[%emt 0:00:40]} Bd7 {[%emt 0:01:44]} 7. Qd2 {[%emt 0:01:04]} Rc8 {[%emt 0:01:09]} 8. f4 {[%emt 0:02:04]} Nxd4 {[%emt 0:02:02]} 9. Qxd4 {[%emt 0:00:03]} Qa5 {[%emt 0:00:25]} 10. e5 {[%emt 0:06:08]} dxe5 {[%emt 0:00:21]} 11. fxe5 {[%emt 0:00:07]} e6 {[%emt 0:00:44]} 12. O-O-O {[%emt 0:01:47]} Bc6 {[%emt 0:02:35]} 13. Bb5 {[%emt 0:01:00]} Nd5 {[%emt 0:01:46]} 14. Nxd5 {[%emt 0:15:13]} Bxb5 {[%emt 0:01:20]} 15. Nc3 {[%emt 0:03:30]} Bc6 {[%emt 0:08:34]} 16. Rd3 {[%emt 0:09:47]} f6 {[%emt 0:19:55]} 17. Bf4 {[%emt 0:23:15]} Qc5 {[%emt 0:02:44]} 18. exf6 {[%emt 0:00:27]} Qxd4 {[%emt 0:00:07]} 19. Rxd4 {[%emt 0:00:08]} gxf6 {[%emt 0:00:29]} 20. Ne4 {[%emt 0:00:17]} Be7 {[%emt 0:08:41]} 21. Nd6+ {[%emt 0:06:12]} Bxd6 {[%emt 0:00:05]} 22. Bxd6 {[%emt 0:02:28]} Bxg2 {[%emt 0:04:37]} 23. Rg1 {[%emt 0:06:54]} Rg8 {[%emt 0:00:09]} 24. Bb4 {[%emt 0:06:15]} Rg6 {[%emt 0:01:27]} 25. Re1 {[%emt 0:02:40]} e5 {[%emt 0:02:02]} 26. Rh4 {[%emt 0:01:13]} Rc7 {[%emt 0:00:22]} 27. c4 {[%emt 0:01:59]} Bf3 {[%emt 0:05:01]} 28. Bd6 {[%emt 0:00:53]} Rcg7 {[%emt 0:01:08]} 29. Rh3 {[%emt 0:00:53]} Rg1 {[%emt 0:01:31]} 30. Rxg1 {[%emt 0:00:49]} Rxg1+ {[%emt 0:00:03]} 31. Kc2 {[%emt 0:00:24]} Bg4 {[%emt 0:03:42]} 32. Rg3 {[%emt 0:01:29]} Rxg3 {[%emt 0:03:27]} 33. hxg3 {[%emt 0:00:07]} Kd7 {[%emt 0:00:16]} 34. Bc5 {[%emt 0:02:10]} a6 {[%emt 0:00:33]} 35. b4 {[%emt 0:02:25]} b5 {[%emt 0:02:04]} 36. cxb5 {[%emt 0:00:01]} axb5 {[%emt 0:00:03]} 37. Kd3 {[%emt 0:00:12]} h5 {[%emt 0:01:02]} 38. Bf8 {[%emt 0:00:50]} Ke6 {[%emt 0:01:02]} 39. Bg7 {[%emt 0:00:07]} Bd1 {[%emt 0:00:55]} 40. Kd2 {[%emt 0:00:30]} Bf3 {[%emt 0:00:23]} 41. Ke3 {[%emt 0:30:03]} Bd5 {[%emt 0:31:17]} 42. a3 {[%emt 0:00:14]} Bg2 {[%emt 0:00:00]} 43. Kf2 {[%emt 0:00:00]} Be4 {[%emt 0:00:00]} 44. Bf8 {[%emt 0:00:00]} Bf5 {[%emt 0:00:00]} 45. Bc5 {[%emt 0:00:00]} Bg4 {[%emt 0:00:00]} 46. Bb6 {[%emt 0:00:00]} h4 {[%emt 0:00:00]} 47. gxh4 {[%emt 0:00:00]} f5 {[%emt 0:00:00]} 48. Be3 {[%emt 0:00:00]} f4 {[%emt 0:00:00]} 49. Bc1 {[%emt 0:00:00]} Kd5 {[%emt 0:00:00]} 50. Ke1 {[%emt 0:00:00]} Bh5 {[%emt 0:00:00]} 51. Kf1 {[%emt 0:00:00]} Ke4 {[%emt 0:00:00]} 52. Kf2 {[%emt 0:00:00]} Be8 {[%emt 0:00:00]} 53. Bb2 {[%emt 0:00:00]} Kf5 {[%emt 0:00:04]} 54. Ke2 {[%emt 0:00:00]} e4 {[%emt 0:00:16]} 55. Bd4 {[%emt 0:00:00]} Bh5+ {[%emt 0:00:45]} 56. Kd2 {[%emt 0:00:00]} e3+ {[%emt 0:05:39]} 57. Kd3 {[%emt 0:00:00]} Bf7 {[%emt 0:02:07]} 58. Bc3 {[%emt 0:00:00]} Kg4 {[%emt 0:00:00]} 59. Ke4 {[%emt 0:00:00]} Bg6+ {[%emt 0:00:00]} 60. Kd4 {[%emt 0:00:00]} Kxh4 {[%emt 0:00:00]} 61. a4 {[%emt 0:00:00]} bxa4 {[%emt 0:00:00]} 62. b5 {[%emt 0:00:00]} Be8 {[%emt 0:00:37]} 63. b6 {[%emt 0:00:00]} Bc6 {[%emt 0:02:23]} 0-1

[Event "10th Dolomiti Open 2019"]
[Site "Forni di Sopra"]
[Date "2019.06.18"]
[Round "4.8"]
[White "Basso, Pier Luigi"]
[Black "Vignesh, B."]
[Result "1-0"]
[ECO "E11"]
[WhiteElo "2539"]
[BlackElo "2283"]
[Annotator "ChessBase"]
[PlyCount "81"]
[EventDate "2019.06.15"]
[EventType "swiss"]
[EventCountry "ITA"]
[SourceTitle "playchess.com"]
[Source "ChessBase"]
[SourceQuality "1"]
[TimeControl "40/5400+30:1800+30"]

1. d4 {[%emt 0:08:38]} Nf6 {[%emt 0:00:00]} 2. c4 {[%emt 0:02:52]} e6 {[%emt 0:00:00]} 3. Nf3 {[%emt 0:00:02]} Bb4+ {[%emt 0:00:00]} 4. Bd2 {[%emt 0:00:28]} Qe7 {[%emt 0:00:04]} 5. g3 {[%emt 0:00:11]} Nc6 {[%emt 0:00:08]} 6. e3 {[%emt 0:00:07]} O-O {[%emt 0:00:21]} 7. Bg2 {[%emt 0:00:14]} e5 {[%emt 0:00:45]} 8. Nxe5 {[%emt 0:03:03]} Nxe5 {[%emt 0:01:33]} 9. dxe5 {[%emt 0:00:07]} Bxd2+ {[%emt 0:00:03]} 10. Qxd2 {[%emt 0:00:10]} Qxe5 {[%emt 0:00:03]} 11. Nc3 {[%emt 0:00:13]} c6 {[%emt 0:06:14]} 12. Rd1 {[%emt 0:02:58]} Rd8 {[%emt 0:00:37]} 13. Qd6 {[%emt 0:06:58]} Qxd6 {[%emt 0:01:58]} 14. Rxd6 {[%emt 0:00:41]} Ne8 {[%emt 0:00:02]} 15. Rd4 {[%emt 0:00:29]} d6 {[%emt 0:00:50]} 16. O-O {[%emt 0:00:51]} Be6 {[%emt 0:00:24]} 17. b3 {[%emt 0:00:31]} Rd7 {[%emt 0:04:08]} 18. e4 {[%emt 0:04:54]} Rad8 {[%emt 0:01:47]} 19. f4 {[%emt 0:00:10]} f6 {[%emt 0:00:53]} 20. h3 {[%emt 0:01:18]} Nc7 {[%emt 0:03:44]} 21. g4 {[%emt 0:02:00]} Bf7 {[%emt 0:10:13]} 22. Rd2 {[%emt 0:00:58]} Ne6 {[%emt 0:04:14]} 23. h4 {[%emt 0:00:39]} h6 {[%emt 0:08:42]} 24. h5 {[%emt 0:00:29]} Nc7 {[%emt 0:00:41]} 25. Kh2 {[%emt 0:02:29]} d5 {[%emt 0:08:29]} 26. exd5 {[%emt 0:01:55]} cxd5 {[%emt 0:00:14]} 27. Rfd1 {[%emt 0:06:53]} d4 {[%emt 0:02:13]} 28. Ne2 {[%emt 0:00:02]} f5 {[%emt 0:04:42]} 29. Rxd4 {[%emt 0:01:52]} Rxd4 {[%emt 0:00:04]} 30. Rxd4 {[%emt 0:00:03]} Rxd4 {[%emt 0:00:35]} 31. Nxd4 {[%emt 0:00:02]} fxg4 {[%emt 0:00:02]} 32. Bxb7 {[%emt 0:00:19]} Bxh5 {[%emt 0:01:01]} 33. Kg3 {[%emt 0:04:55]} Kf7 {[%emt 0:03:20]} 34. Nc6 {[%emt 0:01:21]} Bg6 {[%emt 0:01:25]} 35. Nxa7 {[%emt 0:01:52]} Bb1 {[%emt 0:00:44]} 36. a4 {[%emt 0:01:24]} Bc2 {[%emt 0:06:03]} 37. Nb5 {[%emt 0:00:38]} Bxb3 {[%emt 0:00:24]} 38. a5 {[%emt 0:01:23]} Kf6 {[%emt 0:01:10]} 39. Nxc7 {[%emt 0:00:10]} Bxc4 {[%emt 0:00:03]} 40. Ba6 {[%emt 0:00:53]} Bb3 {[%emt 0:02:17]} 41. Bf1 {[%emt 0:31:03]} 1-0

[Event "10th Dolomiti Open 2019"]
[Site "Forni di Sopra"]
[Date "2019.06.18"]
[Round "4.9"]
[White "Le Goff, Ronan"]
[Black "Bellia, Fabrizio"]
[Result "1/2-1/2"]
[ECO "D36"]
[WhiteElo "2229"]
[BlackElo "2450"]
[Annotator "ChessBase"]
[PlyCount "146"]
[EventDate "2019.06.15"]
[EventType "swiss"]
[EventCountry "ITA"]
[SourceTitle "playchess.com"]
[Source "ChessBase"]
[SourceQuality "1"]
[TimeControl "40/5400+30:1800+30"]

1. d4 {[%emt 0:04:03]} Nf6 {[%emt 0:00:00]} 2. Nf3 {[%emt 0:00:10]} d5 {[%emt 0:00:00]} 3. c4 {[%emt 0:00:42]} e6 {[%emt 0:00:29]} 4. Nc3 {[%emt 0:00:15]} Be7 {[%emt 0:01:11]} 5. cxd5 {[%emt 0:00:48]} exd5 {[%emt 0:00:10]} 6. Bg5 {[%emt 0:00:15]} O-O {[%emt 0:01:22]} 7. Qc2 {[%emt 0:00:47]} c6 {[%emt 0:01:19]} 8. e3 {[%emt 0:00:16]} Nbd7 {[%emt 0:00:14]} 9. Bd3 {[%emt 0:00:12]} Re8 {[%emt 0:00:10]} 10. O-O {[%emt 0:00:28]} g6 {[%emt 0:00:47]} 11. Rab1 {[%emt 0:02:43]} a5 {[%emt 0:04:18]} 12. a3 {[%emt 0:00:14]} Nb6 {[%emt 0:00:12]} 13. Ne2 {[%emt 0:30:16]} a4 {[%emt 0:13:35]} 14. h3 {[%emt 0:02:12]} Ne4 {[%emt 0:00:50]} 15. Bf4 {[%emt 0:01:23]} Nd6 {[%emt 0:05:04]} 16. Ng3 {[%emt 0:07:39]} Nbc4 {[%emt 0:04:24]} 17. e4 {[%emt 0:12:41]} dxe4 {[%emt 0:03:06]} 18. Nxe4 {[%emt 0:00:09]} Nxe4 {[%emt 0:00:55]} 19. Bxe4 {[%emt 0:00:25]} Nd6 {[%emt 0:02:01]} 20. Bd3 {[%emt 0:01:49]} Bf5 {[%emt 0:05:39]} 21. Rbd1 {[%emt 0:01:36]} Be6 {[%emt 0:08:21]} 22. Bxd6 {[%emt 0:02:05]} Qxd6 {[%emt 0:01:24]} 23. Bc4 {[%emt 0:00:12]} Bf6 {[%emt 0:06:01]} 24. Bxe6 {[%emt 0:02:30]} Rxe6 {[%emt 0:00:16]} 25. Rfe1 {[%emt 0:05:31]} Rxe1+ {[%emt 0:06:30]} 26. Rxe1 {[%emt 0:00:08]} Qd5 {[%emt 0:01:19]} 27. Re3 {[%emt 0:01:19]} Kg7 {[%emt 0:01:24]} 28. Rc3 {[%emt 0:01:13]} Be7 {[%emt 0:15:13]} 29. Re3 {[%emt 0:01:52]} Bd6 {[%emt 0:00:36]} 30. g3 {[%emt 0:02:03]} Ra5 {[%emt 0:00:27]} 31. Qe4 {[%emt 0:05:07]} Qxe4 {[%emt 0:02:52]} 32. Rxe4 {[%emt 0:00:06]} Rb5 {[%emt 0:00:09]} 33. Re2 {[%emt 0:00:07]} Kf8 {[%emt 0:01:34]} 34. h4 {[%emt 0:00:29]} Be7 {[%emt 0:02:35]} 35. Kf1 {[%emt 0:01:56]} Bf6 {[%emt 0:00:42]} 36. Rd2 {[%emt 0:00:29]} Ke7 {[%emt 0:01:33]} 37. Ke2 {[%emt 0:01:00]} Kd6 {[%emt 0:01:48]} 38. Kd3 {[%emt 0:00:33]} Kd5 {[%emt 0:03:07]} 39. Ke3 {[%emt 0:04:25]} Rb3+ {[%emt 0:02:07]} 40. Kf4 {[%emt 0:00:13]} h5 {[%emt 0:03:02]} 41. g4 {[%emt 0:31:25]} hxg4 {[%emt 0:30:36]} 42. Kxg4 {[%emt 0:00:07]} Rb5 {[%emt 0:00:00]} 43. Ng1 {[%emt 0:00:00]} Kc4 {[%emt 0:00:00]} 44. Ne2 {[%emt 0:00:00]} Rh5 {[%emt 0:00:00]} 45. Kf3 {[%emt 0:00:00]} Rxh4 {[%emt 0:00:00]} 46. Rc2+ {[%emt 0:00:00]} Kb3 {[%emt 0:00:00]} 47. Rd2 {[%emt 0:00:00]} Bg5 {[%emt 0:00:00]} 48. Nc1+ {[%emt 0:00:00]} Kc4 {[%emt 0:00:00]} 49. Rc2+ {[%emt 0:00:00]} Kxd4 {[%emt 0:00:00]} 50. Ne2+ {[%emt 0:00:00]} Ke5 {[%emt 0:00:00]} 51. Kg3 {[%emt 0:00:00]} Ke6 {[%emt 0:00:00]} 52. f4 {[%emt 0:00:00]} Bf6 {[%emt 0:00:00]} 53. Rc4 {[%emt 0:00:00]} Rh1 {[%emt 0:00:00]} 54. Rxa4 {[%emt 0:00:00]} Bxb2 {[%emt 0:00:00]} 55. Re4+ {[%emt 0:00:00]} Kf6 {[%emt 0:00:00]} 56. Rb4 {[%emt 0:00:00]} Bxa3 {[%emt 0:00:00]} 57. Rxb7 {[%emt 0:00:00]} Rd1 {[%emt 0:00:00]} 58. Kf3 {[%emt 0:00:00]} Bd6 {[%emt 0:00:01]} 59. Rb6 {[%emt 0:00:00]} Rd3+ {[%emt 0:01:41]} 60. Kg4 {[%emt 0:00:00]} c5 {[%emt 0:00:15]} 61. Ng3 {[%emt 0:00:00]} Ke6 {[%emt 0:01:33]} 62. f5+ {[%emt 0:00:00]} Kd5 {[%emt 0:00:17]} 63. Ne2 {[%emt 0:00:00]} gxf5+ {[%emt 0:03:15]} 64. Kxf5 {[%emt 0:00:00]} Re3 {[%emt 0:01:19]} 65. Rb2 {[%emt 0:00:00]} Rf3+ {[%emt 0:00:41]} 66. Kg4 {[%emt 0:00:00]} Ke4 {[%emt 0:00:18]} 67. Rc2 {[%emt 0:00:00]} f5+ {[%emt 0:00:09]} 68. Kg5 {[%emt 0:00:00]} Kd3 {[%emt 0:00:41]} 69. Ra2 {[%emt 0:00:00]} c4 {[%emt 0:00:47]} 70. Nc1+ {[%emt 0:00:00]} Kd4 {[%emt 0:01:10]} 71. Ne2+ {[%emt 0:00:00]} Kd3 {[%emt 0:00:54]} 72. Nc1+ {[%emt 0:00:00]} Kc3 {[%emt 0:00:08]} 73. Ne2+ {[%emt 0:00:00]} Kd3 {[%emt 0:02:43]} 1/2-1/2

[Event "10th Dolomiti Open 2019"]
[Site "Forni di Sopra"]
[Date "2019.06.18"]
[Round "4.10"]
[White "Kumar, Nikhil"]
[Black "Low, Zhen Yu Cyrus"]
[Result "0-1"]
[ECO "E04"]
[WhiteElo "2257"]
[BlackElo "2443"]
[Annotator "NA"]
[PlyCount "57"]
[EventDate "2019.06.15"]
[EventType "swiss"]
[EventCountry "ITA"]
[SourceTitle "playchess.com"]
[Source "ChessBase"]
[SourceQuality "1"]
[TimeControl "40/5400+30:1800+30"]

1. d4 {[%emt 0:00:36]} d5 {[%emt 0:00:00]} 2. c4 {[%emt 0:00:09]} e6 {[%emt 0:00:00]} 3. Nf3 {[%emt 0:00:13]} Nf6 {[%emt 0:00:00]} 4. g3 {[%emt 0:00:07]} dxc4 {[%emt 0:00:00]} 5. Bg2 {[%emt 0:00:09]} Nc6 {[%emt 0:00:03]} 6. Qa4 {[%emt 0:00:48]} Bb4+ {[%emt 0:00:09]} 7. Bd2 {[%emt 0:00:06]} Nd5 {[%emt 0:00:05]} 8. Bxb4 {[%emt 0:06:13]} Ndxb4 {[%emt 0:00:08]} 9. a3 {[%emt 0:03:40]} b5 {[%emt 0:00:10]} 10. Qxb5 {[%emt 0:05:28]} Nc2+ {[%emt 0:00:08]} 11. Kf1 {[%emt 0:01:02]} Bd7 {[%emt 0:00:19]} 12. Qxc4 {[%emt 0:07:21]} Nxa1 {[%emt 0:01:16]} 13. Nbd2 {[%emt 0:00:41]} Rb8 {[%emt 0:11:32]} 14. Qc3 {[%emt 0:11:44]} Qe7 {[%emt 0:08:31]} 15. Ne1 {[%emt 0:10:23]} Rb6 {[%emt 0:18:17]} 16. Nd3 {[%emt 0:15:19]} O-O {[%emt 0:10:37]} 17. b4 {[%emt 0:02:04]} Nc2 {[%emt 0:00:10]} 18. Qxc2 {[%emt 0:02:05]} Nxd4 {[%emt 0:00:06]} 19. Qxc7 {[%emt 0:01:05]} Rc8 {[%emt 0:08:18]} 20. Qxa7 {[%emt 0:04:03]} Qd8 {[%emt 0:00:07]} 21. Be4 {[%emt 0:09:12]} Nc6 {[%emt 0:04:34]} 22. Qa4 {[%emt 0:00:05]} Nxb4 {[%emt 0:00:11]} 23. Qd1 {[%emt 0:09:28]} Nxd3 {[%emt 0:00:07]} 24. Bxd3 {[%emt 0:00:24]} Bb5 {[%emt 0:05:09]} 25. Bxb5 {[%emt 0:02:14]} Rxb5 {[%emt 0:00:05]} 26. Qa4 {[%emt 0:00:17]} Rb2 {[%emt 0:07:26]} 27. Nc4 {[%emt 0:03:59]} Rb1+ {[%emt 0:00:11]} 28. Kg2 {[%emt 0:00:05]} Rxh1 {[%emt 0:00:05]} 29. Kf3 {[%emt 0:05:30]} 0-1

[Event "10th Dolomiti Open 2019"]
[Site "Forni di Sopra"]
[Date "2019.06.18"]
[Round "5.1"]
[White "Ruiz Miguel, Santos"]
[Black "Martinez Alcantara, J."]
[Result "1/2-1/2"]
[ECO "E32"]
[WhiteElo "2557"]
[BlackElo "2583"]
[Annotator "ChessBase"]
[PlyCount "32"]
[EventDate "2019.06.15"]
[EventType "swiss"]
[EventCountry "ITA"]
[SourceTitle "playchess.com"]
[Source "ChessBase"]
[SourceQuality "1"]
[TimeControl "40/5400+30:1800+30"]

1. d4 {[%emt 0:00:00]} Nf6 {[%emt 0:00:05]} 2. c4 {[%emt 0:00:00]} e6 {[%emt 0:00:02]} 3. Nc3 {[%emt 0:00:00]} Bb4 {[%emt 0:00:04]} 4. Qc2 {[%emt 0:00:00]} O-O {[%emt 0:05:26]} 5. e4 {[%emt 0:00:07]} d5 {[%emt 0:00:05]} 6. e5 {[%emt 0:00:03]} Ne4 {[%emt 0:00:15]} 7. Nf3 {[%emt 0:00:04]} c5 {[%emt 0:02:05]} 8. Bd3 {[%emt 0:00:22]} cxd4 {[%emt 0:00:41]} 9. Nxd4 {[%emt 0:00:09]} Nd7 {[%emt 0:00:58]} 10. Bf4 {[%emt 0:00:17]} Bxc3+ {[%emt 0:00:39]} 11. bxc3 {[%emt 0:00:08]} Ndc5 {[%emt 0:00:05]} 12. O-O {[%emt 0:00:25]} Nxd3 {[%emt 0:08:44]} 13. Qxd3 {[%emt 0:00:13]} Qd7 {[%emt 0:13:43]} 14. Rfe1 {[%emt 0:10:09]} b6 {[%emt 0:14:15]} 15. cxd5 {[%emt 0:06:55]} exd5 {[%emt 0:00:10]} 16. h3 {[%emt 0:03:11]} Qa4 {[%emt 0:05:00]} 1/2-1/2

[Event "10th Dolomiti Open 2019"]
[Site "Forni di Sopra"]
[Date "2019.06.18"]
[Round "5.3"]
[White "Sarkar, Justin"]
[Black "Deac Bogdan-Daniel"]
[Result "0-1"]
[ECO "D85"]
[WhiteElo "2359"]
[BlackElo "2623"]
[Annotator "RC"]
[PlyCount "90"]
[EventDate "2019.06.15"]
[EventType "swiss"]
[EventCountry "ITA"]
[SourceTitle "playchess.com"]
[Source "ChessBase"]
[SourceQuality "1"]
[TimeControl "40/5400+30:1800+30"]

1. d4 {[%emt 0:09:56]} Nf6 {[%emt 0:00:22]} 2. c4 {[%emt 0:00:25]} g6 {[%emt 0:00:02]} 3. Nc3 {[%emt 0:00:20]} d5 {[%emt 0:00:03]} 4. cxd5 {[%emt 0:08:37]} Nxd5 {[%emt 0:00:03]} 5. e4 {[%emt 0:00:10]} Nxc3 {[%emt 0:00:04]} 6. bxc3 {[%emt 0:00:04]} Bg7 {[%emt 0:00:02]} 7. Bb5+ {[%emt 0:00:20]} c6 {[%emt 0:00:26]} 8. Ba4 {[%emt 0:00:06]} O-O {[%emt 0:13:18]} 9. Ne2 {[%emt 0:00:14]} c5 {[%emt 0:00:23]} 10. O-O {[%emt 0:03:01]} Nc6 {[%emt 0:02:15]} 11. Bxc6 {[%emt 0:06:16]} bxc6 {[%emt 0:00:02]} 12. Ba3 {[%emt 0:00:16]} cxd4 {[%emt 0:00:58]} 13. Nxd4 {[%emt 0:02:03]} Qc7 {[%emt 0:04:20]} 14. Qa4 {[%emt 0:03:21]} Bd7 {[%emt 0:00:12]} 15. Qc4 {[%emt 0:06:35]} Rfc8 {[%emt 0:00:15]} 16. Bc5 {[%emt 0:02:51]} e5 {[%emt 0:04:20]} 17. Nc2 {[%emt 0:05:26]} Qa5 {[%emt 0:01:17]} 18. Qb4 {[%emt 0:04:08]} Qa6 {[%emt 0:00:31]} 19. c4 {[%emt 0:06:41]} Be6 {[%emt 0:10:32]} 20. Ne3 {[%emt 0:01:12]} Rab8 {[%emt 0:00:28]} 21. Qc3 {[%emt 0:00:36]} Rd8 {[%emt 0:00:18]} 22. f3 {[%emt 0:05:50]} f5 {[%emt 0:09:53]} 23. Rfc1 {[%emt 0:01:02]} Rd7 {[%emt 0:00:20]} 24. a4 {[%emt 0:04:19]} Rbd8 {[%emt 0:16:40]} 25. a5 {[%emt 0:00:50]} h5 {[%emt 0:03:14]} 26. Ra2 {[%emt 0:05:40]} Kh7 {[%emt 0:10:23]} 27. Re2 {[%emt 0:04:29]} Rd3 {[%emt 0:04:55]} 28. Qb4 {[%emt 0:00:12]} R8d7 {[%emt 0:02:37]} 29. exf5 {[%emt 0:04:25]} gxf5 {[%emt 0:00:05]} 30. Nf1 {[%emt 0:01:42]} Kg6 {[%emt 0:01:10]} 31. Qe1 {[%emt 0:05:38]} Bxc4 {[%emt 0:06:01]} 32. Qg3+ {[%emt 0:01:13]} Kh7 {[%emt 0:00:41]} 33. Rxe5 {[%emt 0:01:38]} Bxe5 {[%emt 0:06:42]} 34. Qxe5 {[%emt 0:00:03]} Bf7 {[%emt 0:00:24]} 35. Qxf5+ {[%emt 0:02:45]} Bg6 {[%emt 0:00:03]} 36. Qf6 {[%emt 0:02:14]} Qxa5 {[%emt 0:00:29]} 37. Qxc6 {[%emt 0:00:43]} Qc7 {[%emt 0:02:36]} 38. Qf6 {[%emt 0:01:35]} Rf7 {[%emt 0:02:00]} 39. Qe6 {[%emt 0:00:24]} a5 {[%emt 0:00:31]} 40. Ne3 {[%emt 0:02:06]} Qf4 {[%emt 0:00:33]} 41. Rc4 {[%emt 0:30:25]} Qg5 {[%emt 0:05:13]} 42. f4 {[%emt 0:00:32]} Rxf4 {[%emt 0:06:11]} 43. Be7 {[%emt 0:00:23]} Qh6 {[%emt 0:00:13]} 44. Rc7 {[%emt 0:00:34]} Qg7 {[%emt 0:01:36]} 45. Bd6 {[%emt 0:00:37]} Rf7 {[%emt 0:00:07]} 0-1

[Event "10th Dolomiti Open 2019"]
[Site "Forni di Sopra"]
[Date "2019.06.18"]
[Round "5.6"]
[White "Favaloro, Andrea"]
[Black "Cruz, Cristhian"]
[Result "0-1"]
[ECO "A30"]
[WhiteElo "2337"]
[BlackElo "2561"]
[Annotator "ChessBase"]
[PlyCount "59"]
[EventDate "2019.06.15"]
[EventType "swiss"]
[EventCountry "ITA"]
[SourceTitle "playchess.com"]
[Source "ChessBase"]
[SourceQuality "1"]
[TimeControl "40/5400+30:1800+30"]

1. Nf3 {[%emt 0:00:00]} Nf6 {[%emt 0:01:01]} 2. g3 {[%emt 0:00:00]} b6 {[%emt 0:01:39]} 3. Bg2 {[%emt 0:00:17]} Bb7 {[%emt 0:00:04]} 4. O-O {[%emt 0:00:10]} c5 {[%emt 1:29:16]} 5. c4 {[%emt 0:00:12]} g6 {[%emt 0:00:00]} 6. Nc3 {[%emt 0:00:21]} Bg7 {[%emt 0:00:00]} 7. Re1 {[%emt 0:00:12]} Ne4 {[%emt 0:00:00]} 8. Nxe4 {[%emt 0:01:28]} Bxe4 {[%emt 0:00:00]} 9. d4 {[%emt 0:00:09]} cxd4 {[%emt 0:00:00]} 10. Bh6 {[%emt 0:00:17]} Bxh6 {[%emt 0:00:00]} 11. Qxd4 {[%emt 0:00:05]} O-O {[%emt 0:00:00]} 12. Qxe4 {[%emt 0:00:05]} Nc6 {[%emt 0:00:00]} 13. Rad1 {[%emt 0:02:59]} Rc8 {[%emt 0:00:00]} 14. b3 {[%emt 0:00:17]} Bg7 {[%emt 0:00:00]} 15. e3 {[%emt 0:00:24]} d6 {[%emt 0:00:00]} 16. Nd4 {[%emt 0:00:55]} Nxd4 {[%emt 0:00:00]} 17. exd4 {[%emt 0:00:06]} e6 {[%emt 0:00:00]} 18. h4 {[%emt 0:06:20]} b5 {[%emt 0:00:00]} 19. cxb5 {[%emt 0:03:33]} d5 {[%emt 0:00:00]} 20. Qd3 {[%emt 0:02:17]} Qa5 {[%emt 0:00:00]} 21. Rd2 {[%emt 0:03:02]} Rc3 {[%emt 0:00:00]} 22. Qe2 {[%emt 0:00:21]} Rfc8 {[%emt 0:00:00]} 23. Kh2 {[%emt 0:08:37]} Bh6 {[%emt 0:00:00]} 24. f4 {[%emt 0:00:18]} Bf8 {[%emt 0:00:00]} 25. Bh3 {[%emt 0:00:40]} R3c7 {[%emt 0:00:00]} 26. Red1 {[%emt 0:09:50]} Bb4 {[%emt 0:00:00]} 27. Rb2 {[%emt 0:04:44]} Ba3 {[%emt 0:00:00]} 28. Rbd2 {[%emt 0:04:18]} Bc1 {[%emt 0:00:00]} 29. h5 {[%emt 0:00:44]} Bxd2 {[%emt 0:00:00]} 30. Rxd2 {[%emt 0:00:04]} 0-1

[Event "10th Dolomiti Open 2019"]
[Site "Forni di Sopra"]
[Date "2019.06.18"]
[Round "5.7"]
[White "Ranaldi, Lucas"]
[Black "Basso Pier, Luigi"]
[Result "0-1"]
[ECO "D45"]
[WhiteElo "2237"]
[BlackElo "2539"]
[Annotator "ChessBase"]
[PlyCount "38"]
[EventDate "2019.06.15"]
[EventType "swiss"]
[EventCountry "ITA"]
[SourceTitle "playchess.com"]
[Source "ChessBase"]
[SourceQuality "1"]
[TimeControl "40/5400+30:1800+30"]

1. c4 {[%emt 0:01:02]} c6 {[%emt 0:04:34]} 2. Nf3 {[%emt 0:00:12]} d5 {[%emt 0:01:56]} 3. e3 {[%emt 0:00:18]} Nf6 {[%emt 0:00:11]} 4. Nc3 {[%emt 0:00:23]} e6 {[%emt 0:00:19]} 5. b3 {[%emt 0:01:01]} Bd6 {[%emt 0:00:05]} 6. Bb2 {[%emt 0:00:25]} O-O {[%emt 0:00:07]} 7. d4 {[%emt 0:00:31]} Nbd7 {[%emt 0:00:12]} 8. Be2 {[%emt 0:00:29]} b6 {[%emt 0:00:06]} 9. O-O {[%emt 0:00:18]} Bb7 {[%emt 0:00:02]} 10. Qc2 {[%emt 0:00:24]} Qe7 {[%emt 0:00:34]} 11. Rad1 {[%emt 0:00:54]} Rad8 {[%emt 0:00:16]} 12. Rfe1 {[%emt 0:00:31]} Rfe8 {[%emt 0:00:06]} 13. Bf1 {[%emt 0:01:33]} e5 {[%emt 0:02:52]} 14. cxd5 {[%emt 0:00:08]} e4 {[%emt 0:01:30]} 15. dxc6 {[%emt 0:00:05]} exf3 {[%emt 0:00:36]} 16. cxb7 {[%emt 1:02:26]} Bxh2+ {[%emt 0:00:16]} 17. Kxh2 {[%emt 0:00:06]} Qd6+ {[%emt 0:01:17]} 18. Kh3 {[%emt 0:02:40]} Re5 {[%emt 0:01:01]} 19. g4 {[%emt 0:21:49]} Qe6 {[%emt 0:01:50]} 0-1

[Event "10th Dolomiti Open 2019"]
[Site "Forni di Sopra"]
[Date "2019.06.18"]
[Round "5.8"]
[White "Castellanos, Rodrigue"]
[Black "Sgircea Silvia-Raluc"]
[Result "1-0"]
[ECO "B31"]
[WhiteElo "2511"]
[BlackElo "2256"]
[Annotator "ChessBase"]
[PlyCount "57"]
[EventDate "2019.06.15"]
[EventType "swiss"]
[EventCountry "ITA"]
[SourceTitle "playchess.com"]
[Source "ChessBase"]
[SourceQuality "1"]
[TimeControl "40/5400+30:1800+30"]

1. e4 {[%emt 0:00:46]} c5 {[%emt 0:00:00]} 2. Nf3 {[%emt 0:00:10]} Nc6 {[%emt 0:00:00]} 3. Bb5 {[%emt 0:00:07]} g6 {[%emt 0:00:25]} 4. O-O {[%emt 0:00:08]} Bg7 {[%emt 0:00:03]} 5. Re1 {[%emt 0:00:21]} Nf6 {[%emt 0:01:56]} 6. c3 {[%emt 0:00:45]} O-O {[%emt 0:00:47]} 7. h3 {[%emt 0:00:10]} a6 {[%emt 0:08:55]} 8. Bf1 {[%emt 0:04:28]} d6 {[%emt 0:01:49]} 9. d4 {[%emt 0:01:28]} cxd4 {[%emt 0:22:17]} 10. cxd4 {[%emt 0:00:07]} b5 {[%emt 0:03:10]} 11. Nbd2 {[%emt 0:07:38]} Bb7 {[%emt 0:02:54]} 12. d5 {[%emt 0:02:22]} Na5 {[%emt 0:00:56]} 13. Rb1 {[%emt 0:04:36]} Rc8 {[%emt 0:01:16]} 14. b3 {[%emt 0:00:57]} Nd7 {[%emt 0:10:30]} 15. Bb2 {[%emt 0:08:12]} Bxb2 {[%emt 0:03:34]} 16. Rxb2 {[%emt 0:00:25]} b4 {[%emt 0:00:21]} 17. Nd4 {[%emt 0:01:48]} Qb6 {[%emt 0:00:40]} 18. N2f3 {[%emt 0:02:01]} Ne5 {[%emt 0:04:01]} 19. Qd2 {[%emt 0:02:05]} Kg7 {[%emt 0:03:51]} 20. Nh4 {[%emt 0:03:16]} Rc3 {[%emt 0:04:28]} 21. Rc2 {[%emt 0:06:38]} Rxc2 {[%emt 0:09:13]} 22. Nxc2 {[%emt 0:00:17]} h6 {[%emt 0:00:13]} 23. Re3 {[%emt 0:09:17]} Rc8 {[%emt 0:01:25]} 24. Nd4 {[%emt 0:02:42]} Qc5 {[%emt 0:04:00]} 25. Nhf3 {[%emt 0:14:48]} Rc7 {[%emt 0:04:01]} 26. Ne1 {[%emt 0:02:08]} Bc8 {[%emt 0:06:53]} 27. Nec2 {[%emt 0:00:52]} Nb7 {[%emt 0:01:19]} 28. Bxa6 {[%emt 0:05:34]} Qa5 {[%emt 0:00:50]} 29. Nxb4 {[%emt 0:01:19]} 1-0